[Event "Early-Titled-Tuesday-Blitz-January-30-2024"]
[Site "Chess.com"]
[Date "2024.01.30"]
[Round "9"]
[White "Witik"]
[Black "bulletteemo"]
[Result "1/2-1/2"]
[WhiteElo "2662"]
[BlackElo "2527"]
[TimeControl "180+1"]
[EndTime "9:49:40 PST"]
[Termination "Game drawn - insufficient material"]

1. d4 {[%clk 0:02:59.8]} 1... g6 {[%clk 0:02:25.4]} 2. e4 {[%clk 0:02:59.5]}
2... Bg7 {[%clk 0:02:24.9]} 3. Nf3 {[%clk 0:03:00]} 3... d6 {[%clk 0:02:23.4]}
4. Bc4 {[%clk 0:02:58.4]} 4... Nf6 {[%clk 0:02:23.5]} 5. Qe2 {[%clk 0:02:58.2]}
5... c6 {[%clk 0:02:23.9]} 6. Bb3 {[%clk 0:02:56.3]} 6... O-O {[%clk 0:02:23.9]}
7. O-O {[%clk 0:02:56.2]} 7... Bg4 {[%clk 0:02:23.1]} 8. Nbd2 {[%clk 0:02:56.4]}
8... Nbd7 {[%clk 0:02:23.3]} 9. h3 {[%clk 0:02:56.7]} 9... Bxf3 {[%clk
0:02:23.9]} 10. Nxf3 {[%clk 0:02:57.6]} 10... e5 {[%clk 0:02:24.7]} 11. dxe5
{[%clk 0:02:58]} 11... dxe5 {[%clk 0:02:25.2]} 12. a4 {[%clk 0:02:53.5]} 12...
Qc7 {[%clk 0:02:23.3]} 13. c3 {[%clk 0:02:51]} 13... Nc5 {[%clk 0:02:11]} 14.
Bc2 {[%clk 0:02:50.1]} 14... Ne6 {[%clk 0:02:11.7]} 15. g3 {[%clk 0:02:45.4]}
15... Nd7 {[%clk 0:01:51.2]} 16. b4 {[%clk 0:02:40.5]} 16... Kh8 {[%clk
0:01:49.3]} 17. Bb3 {[%clk 0:02:36]} 17... Rae8 {[%clk 0:01:48.6]} 18. h4 {[%clk
0:02:23.1]} 18... f5 {[%clk 0:01:14.5]} 19. h5 {[%clk 0:02:20.9]} 19... fxe4
{[%clk 0:01:13.8]} 20. Nd2 {[%clk 0:01:48]} 20... Ng5 {[%clk 0:01:00.5]} 21.
Nxe4 {[%clk 0:01:42.4]} 21... Nxe4 {[%clk 0:00:50.8]} 22. h6 {[%clk 0:01:32.8]}
22... Nd6 {[%clk 0:00:12]} 23. hxg7+ {[%clk 0:01:20.4]} 23... Kxg7 {[%clk
0:00:12.9]} 24. Kg2 {[%clk 0:01:01]} 24... Nf6 {[%clk 0:00:12.1]} 25. Rh1 {[%clk
0:00:47.4]} 25... Nf5 {[%clk 0:00:12.4]} 26. Bg5 {[%clk 0:00:34.4]} 26... h5
{[%clk 0:00:09.1]} 27. Rad1 {[%clk 0:00:21.7]} 27... e4 {[%clk 0:00:09]} 28. Bf4
{[%clk 0:00:20.9]} 28... Qe7 {[%clk 0:00:07.9]} 29. Rhe1 {[%clk 0:00:16.8]}
29... Ng4 {[%clk 0:00:04.5]} 30. Bc2 {[%clk 0:00:14.1]} 30... g5 {[%clk
0:00:04]} 31. Bc1 {[%clk 0:00:13.1]} 31... e3 {[%clk 0:00:03.5]} 32. Bxf5 {[%clk
0:00:07.5]} 32... Rxf5 {[%clk 0:00:04.4]} 33. Bxe3 {[%clk 0:00:07.2]} 33...
Nxe3+ {[%clk 0:00:04.5]} 34. Qxe3 {[%clk 0:00:07.8]} 34... Qxe3 {[%clk
0:00:04.2]} 35. Rxe3 {[%clk 0:00:08.7]} 35... Rxe3 {[%clk 0:00:04.3]} 36. fxe3
{[%clk 0:00:09.6]} 36... Kf6 {[%clk 0:00:04.2]} 37. Rd7 {[%clk 0:00:09.2]} 37...
a5 {[%clk 0:00:03.8]} 38. Rxb7 {[%clk 0:00:08.4]} 38... Re5 {[%clk 0:00:04]} 39.
Rb6 {[%clk 0:00:05.4]} 39... Rxe3 {[%clk 0:00:02.5]} 40. Rxc6+ {[%clk
0:00:05.7]} 40... Ke7 {[%clk 0:00:03.2]} 41. bxa5 {[%clk 0:00:04.8]} 41... Kd7
{[%clk 0:00:03.5]} 42. Rc5 {[%clk 0:00:05]} 42... h4 {[%clk 0:00:03.9]} 43. Rxg5
{[%clk 0:00:04.3]} 43... hxg3 {[%clk 0:00:02.5]} 44. Rxg3 {[%clk 0:00:04.4]}
44... Re5 {[%clk 0:00:03.4]} 45. Rg4 {[%clk 0:00:03.9]} 45... Rxa5 {[%clk
0:00:03.6]} 46. Rb4 {[%clk 0:00:04.6]} 46... Kc6 {[%clk 0:00:03.9]} 47. Kf3
{[%clk 0:00:05.1]} 47... Re5 {[%clk 0:00:04.3]} 48. Kf4 {[%clk 0:00:05.2]} 48...
Re1 {[%clk 0:00:04.8]} 49. Rc4+ {[%clk 0:00:04.1]} 49... Kd5 {[%clk 0:00:04.8]}
50. Rd4+ {[%clk 0:00:04]} 50... Kc5 {[%clk 0:00:05.3]} 51. Re4 {[%clk
0:00:03.5]} 51... Rc1 {[%clk 0:00:05]} 52. Re5+ {[%clk 0:00:02.6]} 52... Kc4
{[%clk 0:00:05.2]} 53. Re8 {[%clk 0:00:01.7]} 53... Ra1 {[%clk 0:00:04.3]} 54.
Rc8+ {[%clk 0:00:01.7]} 54... Kb3 {[%clk 0:00:04.5]} 55. Rb8+ {[%clk 0:00:01.9]}
55... Kxc3 {[%clk 0:00:04.9]} 56. Rc8+ {[%clk 0:00:02.1]} 56... Kb4 {[%clk
0:00:05.4]} 57. Ra8 {[%clk 0:00:02.5]} 57... Rxa4 {[%clk 0:00:05.1]} 58. Rxa4+
{[%clk 0:00:02.6]} 58... Kxa4 {[%clk 0:00:06]} 1/2-1/2

[Event "Early-Titled-Tuesday-Blitz-January-30-2024"]
[Site "Chess.com"]
[Date "2024.01.30"]
[Round "9"]
[White "Chesstiger64"]
[Black "Mohamed-almado"]
[Result "1-0"]
[WhiteElo "2247"]
[BlackElo "2219"]
[TimeControl "180+1"]
[EndTime "9:49:42 PST"]
[Termination "Chesstiger64 won by resignation"]

1. d4 {[%clk 0:02:55.6]} 1... d5 {[%clk 0:02:57]} 2. Nf3 {[%clk 0:02:56.1]} 2...
c6 {[%clk 0:02:57.1]} 3. Bf4 {[%clk 0:02:55.7]} 3... Qb6 {[%clk 0:02:52.3]} 4.
Qc1 {[%clk 0:02:55.5]} 4... Bf5 {[%clk 0:02:51.3]} 5. e3 {[%clk 0:02:53.7]} 5...
e6 {[%clk 0:02:51.3]} 6. Nbd2 {[%clk 0:02:49.7]} 6... h6 {[%clk 0:02:50]} 7. c4
{[%clk 0:02:49.1]} 7... Nf6 {[%clk 0:02:40.6]} 8. c5 {[%clk 0:02:48.9]} 8... Qd8
{[%clk 0:02:38.6]} 9. h3 {[%clk 0:02:44.5]} 9... Be7 {[%clk 0:02:32.9]} 10. g4
{[%clk 0:02:44.5]} 10... Bh7 {[%clk 0:02:32.2]} 11. Be2 {[%clk 0:02:44.6]} 11...
Ne4 {[%clk 0:02:30.6]} 12. Nxe4 {[%clk 0:02:44]} 12... Bxe4 {[%clk 0:02:29.4]}
13. O-O {[%clk 0:02:41.2]} 13... O-O {[%clk 0:02:27.4]} 14. Qd2 {[%clk
0:02:34.7]} 14... Nd7 {[%clk 0:02:26.8]} 15. Ne5 {[%clk 0:02:26.1]} 15... Nxe5
{[%clk 0:02:19.4]} 16. Bxe5 {[%clk 0:02:27]} 16... f6 {[%clk 0:02:19]} 17. Bg3
{[%clk 0:02:25.3]} 17... f5 {[%clk 0:02:06.6]} 18. f3 {[%clk 0:02:19.5]} 18...
f4 {[%clk 0:02:06]} 19. Bxf4 {[%clk 0:02:18.1]} 19... Bh7 {[%clk 0:02:05.7]} 20.
Bd3 {[%clk 0:02:17.9]} 20... Bxd3 {[%clk 0:02:05.1]} 21. Qxd3 {[%clk 0:02:17.8]}
21... Bg5 {[%clk 0:02:01.7]} 22. Bd6 {[%clk 0:02:09.3]} 22... Be7 {[%clk
0:01:59.4]} 23. Bxe7 {[%clk 0:02:08.9]} 23... Qxe7 {[%clk 0:01:59.3]} 24. f4
{[%clk 0:02:09.4]} 24... g5 {[%clk 0:01:53.2]} 25. Kg2 {[%clk 0:02:01.9]} 25...
Kg7 {[%clk 0:01:50.2]} 26. fxg5 {[%clk 0:01:57.2]} 26... hxg5 {[%clk 0:01:49.8]}
27. Rxf8 {[%clk 0:01:53.9]} 27... Rxf8 {[%clk 0:01:50.1]} 28. Rf1 {[%clk
0:01:54.2]} 28... Rxf1 {[%clk 0:01:49.7]} 29. Kxf1 {[%clk 0:01:54.6]} 29... e5
{[%clk 0:01:49.5]} 30. Qf5 {[%clk 0:01:53.3]} 30... exd4 {[%clk 0:01:44.2]} 31.
exd4 {[%clk 0:01:53.5]} 31... Qe3 {[%clk 0:01:15.8]} 32. Kg2 {[%clk 0:01:24.2]}
32... Qd2+ {[%clk 0:01:15.6]} 33. Qf2 {[%clk 0:01:23.8]} 33... Qd3 {[%clk
0:01:09.7]} 34. b4 {[%clk 0:01:18.1]} 34... Qe4+ {[%clk 0:01:08.6]} 35. Kh2
{[%clk 0:01:16.9]} 35... b6 {[%clk 0:01:01.9]} 36. cxb6 {[%clk 0:01:15.6]} 36...
axb6 {[%clk 0:01:02.2]} 37. a4 {[%clk 0:01:16.1]} 37... Qb1 {[%clk 0:00:57]} 38.
Qd2 {[%clk 0:01:09.7]} 38... Qa1 {[%clk 0:00:53]} 39. Qxg5+ {[%clk 0:01:08.3]}
39... Kf7 {[%clk 0:00:52.9]} 40. Qf5+ {[%clk 0:01:03.2]} 40... Ke7 {[%clk
0:00:52.3]} 41. Qh7+ {[%clk 0:00:57.3]} 41... Ke6 {[%clk 0:00:51.6]} 42. Qg6+
{[%clk 0:00:55.8]} 42... Kd7 {[%clk 0:00:51.8]} 43. Qf5+ {[%clk 0:00:54.1]}
43... Kd6 {[%clk 0:00:52]} 44. Qf6+ {[%clk 0:00:53.4]} 44... Kd7 {[%clk
0:00:52.1]} 45. Qf7+ {[%clk 0:00:53.5]} 45... Kd6 {[%clk 0:00:52.4]} 46. b5
{[%clk 0:00:48.6]} 46... cxb5 {[%clk 0:00:50.9]} 47. Qf8+ {[%clk 0:00:47.4]}
47... Kd7 {[%clk 0:00:49.1]} 48. Qg7+ {[%clk 0:00:46.8]} 48... Kd6 {[%clk
0:00:48.9]} 49. axb5 {[%clk 0:00:47]} 49... Qb2+ {[%clk 0:00:46.7]} 50. Kg3
{[%clk 0:00:45.9]} 50... Qxb5 {[%clk 0:00:46.8]} 51. Qe5+ {[%clk 0:00:46.1]}
51... Kd7 {[%clk 0:00:46.6]} 52. g5 {[%clk 0:00:46.4]} 52... Qd3+ {[%clk
0:00:43.7]} 53. Kg4 {[%clk 0:00:45.1]} 53... Qd1+ {[%clk 0:00:41]} 54. Kh4
{[%clk 0:00:43.9]} 54... Kc6 {[%clk 0:00:38.3]} 55. Qe6+ {[%clk 0:00:41.1]}
55... Kc7 {[%clk 0:00:37.2]} 56. Qxd5 {[%clk 0:00:41.7]} 56... Qe1+ {[%clk
0:00:37.2]} 57. Kh5 {[%clk 0:00:40]} 57... Qe2+ {[%clk 0:00:37.7]} 58. Kh6
{[%clk 0:00:37.4]} 58... b5 {[%clk 0:00:35.2]} 59. g6 {[%clk 0:00:37.1]} 59...
Qd2+ {[%clk 0:00:31.6]} 60. Kh7 {[%clk 0:00:33.6]} 60... b4 {[%clk 0:00:32]} 61.
g7 {[%clk 0:00:31.6]} 61... Qc2+ {[%clk 0:00:31.2]} 62. Kh8 {[%clk 0:00:31.4]}
62... b3 {[%clk 0:00:31.1]} 63. g8=Q {[%clk 0:00:29.8]} 63... b2 {[%clk
0:00:27.4]} 64. Qgf7+ {[%clk 0:00:29.1]} 64... Kb6 {[%clk 0:00:26.9]} 65. Qfe6+
{[%clk 0:00:29.2]} 65... Ka7 {[%clk 0:00:24.8]} 66. Qdd7+ {[%clk 0:00:29.1]}
66... Kb8 {[%clk 0:00:24.8]} 67. Qee8+ {[%clk 0:00:29]} 1-0

[Event "Early-Titled-Tuesday-Blitz-January-30-2024"]
[Site "Chess.com"]
[Date "2024.01.30"]
[Round "9"]
[White "vishwa_vijeta"]
[Black "Licancabur"]
[Result "1-0"]
[WhiteElo "2547"]
[BlackElo "2426"]
[TimeControl "180+1"]
[EndTime "9:49:45 PST"]
[Termination "vishwa_vijeta won on time"]

1. e4 {[%clk 0:02:53.5]} 1... Nf6 {[%clk 0:02:59.1]} 2. e5 {[%clk 0:02:53.6]}
2... Nd5 {[%clk 0:02:59.7]} 3. Nf3 {[%clk 0:02:51.8]} 3... d6 {[%clk 0:02:59.1]}
4. Nc3 {[%clk 0:02:51.3]} 4... Nxc3 {[%clk 0:02:56.8]} 5. dxc3 {[%clk
0:02:50.9]} 5... Nc6 {[%clk 0:02:45.5]} 6. exd6 {[%clk 0:02:50.4]} 6... cxd6
{[%clk 0:02:42.6]} 7. Bc4 {[%clk 0:02:50.1]} 7... e6 {[%clk 0:02:39.1]} 8. O-O
{[%clk 0:02:47.5]} 8... Be7 {[%clk 0:02:38.6]} 9. Re1 {[%clk 0:02:42.4]} 9...
O-O {[%clk 0:02:38.1]} 10. Bd3 {[%clk 0:02:38.9]} 10... d5 {[%clk 0:02:25.8]}
11. h4 {[%clk 0:02:31.5]} 11... Bxh4 {[%clk 0:02:21.4]} 12. g3 {[%clk
0:02:27.4]} 12... Bf6 {[%clk 0:02:18.2]} 13. Kg2 {[%clk 0:02:26.4]} 13... e5
{[%clk 0:02:15.3]} 14. c4 {[%clk 0:02:03.1]} 14... e4 {[%clk 0:02:12.7]} 15.
cxd5 {[%clk 0:02:01.4]} 15... exf3+ {[%clk 0:02:09.5]} 16. Qxf3 {[%clk
0:02:01.9]} 16... Nd4 {[%clk 0:01:40.8]} 17. Bxh7+ {[%clk 0:01:50]} 17... Kxh7
{[%clk 0:01:30.6]} 18. Qh5+ {[%clk 0:01:47.9]} 18... Kg8 {[%clk 0:01:30.1]} 19.
Rh1 {[%clk 0:01:48.8]} 19... Qxd5+ {[%clk 0:00:36.6]} 20. Qxd5 {[%clk
0:01:22.3]} 20... Bf5 {[%clk 0:00:36.3]} 21. g4 {[%clk 0:01:02.5]} 21... Bxg4
{[%clk 0:00:29.3]} 22. Be3 {[%clk 0:00:58.4]} 22... Bf3+ {[%clk 0:00:25.8]} 23.
Qxf3 {[%clk 0:00:56.8]} 23... Nxf3 {[%clk 0:00:25.7]} 24. Kxf3 {[%clk
0:00:57.7]} 24... Rac8 {[%clk 0:00:20.1]} 25. c3 {[%clk 0:00:57]} 25... b6
{[%clk 0:00:19.9]} 26. Rh3 {[%clk 0:00:55.3]} 26... Rfe8 {[%clk 0:00:15.3]} 27.
Rah1 {[%clk 0:00:37.7]} 27... g6 {[%clk 0:00:15.6]} 28. Ke2 {[%clk 0:00:33.8]}
28... Bg7 {[%clk 0:00:15.3]} 29. Rf3 {[%clk 0:00:31.9]} 29... Rcd8 {[%clk
0:00:15.3]} 30. Rd1 {[%clk 0:00:31.4]} 30... Rxd1 {[%clk 0:00:14.6]} 31. Kxd1
{[%clk 0:00:32.3]} 31... f5 {[%clk 0:00:13.3]} 32. Kc2 {[%clk 0:00:29.9]} 32...
Kf7 {[%clk 0:00:12.9]} 33. c4 {[%clk 0:00:28.6]} 33... Re4 {[%clk 0:00:12.7]}
34. b3 {[%clk 0:00:23]} 34... Bf6 {[%clk 0:00:11.3]} 35. Rf4 {[%clk 0:00:23.1]}
35... Re6 {[%clk 0:00:09.7]} 36. c5 {[%clk 0:00:21]} 36... bxc5 {[%clk
0:00:08.8]} 37. Ra4 {[%clk 0:00:19.6]} 37... Re7 {[%clk 0:00:08.2]} 38. Bxc5
{[%clk 0:00:18.3]} 38... Rc7 {[%clk 0:00:08.7]} 39. Rxa7 {[%clk 0:00:18.2]}
39... Rxa7 {[%clk 0:00:07.9]} 40. Bxa7 {[%clk 0:00:19.1]} 40... Ke6 {[%clk
0:00:08.3]} 41. a4 {[%clk 0:00:19.5]} 41... Kd5 {[%clk 0:00:08.8]} 42. a5 {[%clk
0:00:17.6]} 42... Kc6 {[%clk 0:00:08.2]} 43. b4 {[%clk 0:00:16.1]} 43... Kb5
{[%clk 0:00:08.2]} 44. Kb3 {[%clk 0:00:16.6]} 44... g5 {[%clk 0:00:07.7]} 45.
Bc5 {[%clk 0:00:16.7]} 45... g4 {[%clk 0:00:06.8]} 46. Kc2 {[%clk 0:00:15.8]}
46... Bh4 {[%clk 0:00:06.1]} 47. Kd3 {[%clk 0:00:14.8]} 47... f4 {[%clk
0:00:05]} 48. Ke4 {[%clk 0:00:13.2]} 48... g3 {[%clk 0:00:05.2]} 49. f3 {[%clk
0:00:13.3]} 49... Bg5 {[%clk 0:00:03.6]} 50. Kf5 {[%clk 0:00:13]} 50... Bh6
{[%clk 0:00:03.5]} 51. Kg6 {[%clk 0:00:12.9]} 51... g2 {[%clk 0:00:02.1]} 52.
Kxh6 {[%clk 0:00:13]} 1-0

[Event "Early-Titled-Tuesday-Blitz-January-30-2024"]
[Site "Chess.com"]
[Date "2024.01.30"]
[Round "9"]
[White "VincentKeymer"]
[Black "JimDiGrease"]
[Result "0-1"]
[WhiteElo "3055"]
[BlackElo "2963"]
[TimeControl "180+1"]
[EndTime "9:49:48 PST"]
[Termination "JimDiGrease won on time"]

1. Nf3 {[%clk 0:03:00.9]} 1... d5 {[%clk 0:02:59.8]} 2. e3 {[%clk 0:03:01.2]}
2... Nf6 {[%clk 0:02:59.8]} 3. c4 {[%clk 0:03:01.3]} 3... e6 {[%clk 0:03:00.3]}
4. Nc3 {[%clk 0:03:01.7]} 4... c5 {[%clk 0:02:58]} 5. cxd5 {[%clk 0:03:01.6]}
5... exd5 {[%clk 0:02:58.2]} 6. Bb5+ {[%clk 0:03:01.9]} 6... Nc6 {[%clk
0:02:47.5]} 7. Ne5 {[%clk 0:03:01.4]} 7... Qc7 {[%clk 0:02:38.5]} 8. Qa4 {[%clk
0:03:00.8]} 8... Bd7 {[%clk 0:02:29.2]} 9. Nxd7 {[%clk 0:02:52]} 9... Qxd7
{[%clk 0:02:30.1]} 10. Bxc6 {[%clk 0:02:52.2]} 10... bxc6 {[%clk 0:02:29.4]} 11.
O-O {[%clk 0:02:51.9]} 11... Bd6 {[%clk 0:02:25.1]} 12. b3 {[%clk 0:02:52.2]}
12... O-O {[%clk 0:02:13.3]} 13. Ba3 {[%clk 0:02:52.1]} 13... Rfe8 {[%clk
0:02:00.2]} 14. Qa5 {[%clk 0:02:35.3]} 14... d4 {[%clk 0:01:44.5]} 15. Na4
{[%clk 0:02:28.7]} 15... Ne4 {[%clk 0:01:44.2]} 16. d3 {[%clk 0:02:22]} 16...
Ng5 {[%clk 0:01:20.7]} 17. e4 {[%clk 0:02:03.9]} 17... Nf3+ {[%clk 0:01:07]} 18.
Kh1 {[%clk 0:02:03.3]} 18... Nxh2 {[%clk 0:00:59.1]} 19. f4 {[%clk 0:01:48.8]}
19... Nxf1 {[%clk 0:00:53.8]} 20. Rxf1 {[%clk 0:01:49.7]} 20... Qg4 {[%clk
0:00:50.8]} 21. e5 {[%clk 0:01:48.7]} 21... Re6 {[%clk 0:00:39.4]} 22. Qe1
{[%clk 0:01:26.7]} 22... f6 {[%clk 0:00:23.4]} 23. Qe4 {[%clk 0:01:09.6]} 23...
fxe5 {[%clk 0:00:20.1]} 24. f5 {[%clk 0:01:10.1]} 24... Rh6+ {[%clk 0:00:15.8]}
25. Kg1 {[%clk 0:01:10.5]} 25... Qg3 {[%clk 0:00:16.5]} 26. Bxc5 {[%clk
0:01:07.3]} 26... Qh2+ {[%clk 0:00:10.2]} 27. Kf2 {[%clk 0:01:06.7]} 27... Rf8
{[%clk 0:00:10.7]} 28. Ke2 {[%clk 0:01:00.4]} 28... Rh4 {[%clk 0:00:05.6]} 29.
Qxc6 {[%clk 0:00:53.9]} 29... Bxc5 {[%clk 0:00:05.2]} 30. Nxc5 {[%clk
0:00:51.8]} 30... Rf4 {[%clk 0:00:05.8]} 31. Rxf4 {[%clk 0:00:27.8]} 31... Qxf4
{[%clk 0:00:06.7]} 32. Ne6 {[%clk 0:00:25.3]} 32... Qe3+ {[%clk 0:00:06.4]} 33.
Kd1 {[%clk 0:00:24.8]} 33... Qxd3+ {[%clk 0:00:06.7]} 34. Kc1 {[%clk 0:00:25.4]}
34... Qxf5 {[%clk 0:00:05]} 35. Nxf8 {[%clk 0:00:24.3]} 35... Kxf8 {[%clk
0:00:05.9]} 36. Qa8+ {[%clk 0:00:23.4]} 36... Kf7 {[%clk 0:00:06.5]} 37. Qxa7+
{[%clk 0:00:24.3]} 37... Kg6 {[%clk 0:00:07.2]} 38. Qa6+ {[%clk 0:00:21.8]}
38... Kg5 {[%clk 0:00:07.2]} 39. a4 {[%clk 0:00:22]} 39... e4 {[%clk 0:00:06.1]}
40. Qd6 {[%clk 0:00:20.5]} 40... Qf1+ {[%clk 0:00:05.9]} 41. Kb2 {[%clk
0:00:20.6]} 41... Qe2+ {[%clk 0:00:05.6]} 42. Ka3 {[%clk 0:00:19.5]} 42... d3
{[%clk 0:00:06.5]} 43. Qe5+ {[%clk 0:00:17.1]} 43... Kh6 {[%clk 0:00:06.6]} 44.
Qh2+ {[%clk 0:00:12]} 44... Kg6 {[%clk 0:00:05.1]} 45. Qd6+ {[%clk 0:00:12.2]}
45... Kf5 {[%clk 0:00:05.1]} 46. Qf8+ {[%clk 0:00:12]} 46... Ke5 {[%clk
0:00:04.4]} 47. Qxg7+ {[%clk 0:00:12]} 47... Kf4 {[%clk 0:00:05.1]} 48. Qh6+
{[%clk 0:00:11.4]} 48... Kg3 {[%clk 0:00:05.5]} 49. Qg5+ {[%clk 0:00:10.6]}
49... Kf2 {[%clk 0:00:05.7]} 50. Qf4+ {[%clk 0:00:11]} 50... Kxg2 {[%clk
0:00:06.4]} 51. Qg5+ {[%clk 0:00:11.3]} 51... Kf1 {[%clk 0:00:07]} 52. Qf4+
{[%clk 0:00:10.7]} 52... Qf3 {[%clk 0:00:07.7]} 53. Qc1+ {[%clk 0:00:09.7]}
53... Ke2 {[%clk 0:00:08.3]} 54. Qc4 {[%clk 0:00:06.6]} 54... e3 {[%clk
0:00:07.1]} 55. a5 {[%clk 0:00:05.7]} 55... Qf8+ {[%clk 0:00:06.2]} 56. Ka2
{[%clk 0:00:06.2]} 56... Kd2 {[%clk 0:00:05.4]} 57. Kb2 {[%clk 0:00:03.8]} 57...
Qf2 {[%clk 0:00:03]} 58. a6 {[%clk 0:00:01.9]} 58... Ke1+ {[%clk 0:00:03.1]} 59.
Ka3 {[%clk 0:00:01.9]} 59... d2 {[%clk 0:00:03.9]} 0-1

[Event "Early-Titled-Tuesday-Blitz-January-30-2024"]
[Site "Chess.com"]
[Date "2024.01.30"]
[Round "9"]
[White "Gabrielian_Artur"]
[Black "Binary010"]
[Result "1/2-1/2"]
[WhiteElo "2786"]
[BlackElo "2914"]
[TimeControl "180+1"]
[EndTime "9:49:49 PST"]
[Termination "Game drawn by stalemate"]

1. e4 {[%clk 0:02:57.2]} 1... c5 {[%clk 0:02:59]} 2. Nf3 {[%clk 0:02:56.8]} 2...
d6 {[%clk 0:02:59.5]} 3. d4 {[%clk 0:02:56.9]} 3... cxd4 {[%clk 0:03:00.4]} 4.
Nxd4 {[%clk 0:02:57.2]} 4... Nf6 {[%clk 0:03:01.1]} 5. Nc3 {[%clk 0:02:57.6]}
5... a6 {[%clk 0:03:01.4]} 6. Bc4 {[%clk 0:02:57.5]} 6... e6 {[%clk 0:03:01.6]}
7. Be3 {[%clk 0:02:57.7]} 7... b5 {[%clk 0:03:00.2]} 8. Bb3 {[%clk 0:02:57.8]}
8... Be7 {[%clk 0:02:59.2]} 9. f3 {[%clk 0:02:55.1]} 9... O-O {[%clk 0:02:59]}
10. Qd2 {[%clk 0:02:53.7]} 10... Bd7 {[%clk 0:02:54.8]} 11. g4 {[%clk
0:02:51.6]} 11... Nc6 {[%clk 0:02:46]} 12. g5 {[%clk 0:02:51.2]} 12... Nxd4
{[%clk 0:02:46]} 13. Qxd4 {[%clk 0:02:42.3]} 13... Nh5 {[%clk 0:02:45.7]} 14.
Rg1 {[%clk 0:02:42.2]} 14... Rc8 {[%clk 0:02:20.8]} 15. O-O-O {[%clk 0:02:06.4]}
15... a5 {[%clk 0:02:11.4]} 16. a3 {[%clk 0:02:03.6]} 16... Qc7 {[%clk
0:01:45.9]} 17. Qb6 {[%clk 0:01:55.2]} 17... Qxb6 {[%clk 0:01:19.8]} 18. Bxb6
{[%clk 0:01:55.2]} 18... a4 {[%clk 0:01:20.5]} 19. Ba2 {[%clk 0:01:55]} 19...
Nf4 {[%clk 0:01:21.2]} 20. Be3 {[%clk 0:01:30.3]} 20... Ng6 {[%clk 0:01:21.2]}
21. f4 {[%clk 0:01:24.5]} 21... Bc6 {[%clk 0:01:16.3]} 22. f5 {[%clk 0:01:14.9]}
22... exf5 {[%clk 0:01:16.3]} 23. exf5 {[%clk 0:01:13.5]} 23... Ne5 {[%clk
0:01:17]} 24. g6 {[%clk 0:00:57.9]} 24... Nc4 {[%clk 0:01:04.6]} 25. gxh7+
{[%clk 0:00:52.1]} 25... Kxh7 {[%clk 0:01:01.4]} 26. Bd4 {[%clk 0:00:52.4]}
26... g6 {[%clk 0:00:40]} 27. Rd3 {[%clk 0:00:51.7]} 27... Ne5 {[%clk
0:00:27.8]} 28. Rh3+ {[%clk 0:00:50.4]} 28... Kg7 {[%clk 0:00:28.4]} 29. Rhg3
{[%clk 0:00:31.3]} 29... Bh4 {[%clk 0:00:23]} 30. Rh3 {[%clk 0:00:26.9]} 30...
Bf6 {[%clk 0:00:21.5]} 31. fxg6 {[%clk 0:00:23.6]} 31... fxg6 {[%clk 0:00:18.1]}
32. Rhg3 {[%clk 0:00:23.7]} 32... g5 {[%clk 0:00:16.5]} 33. h4 {[%clk
0:00:22.8]} 33... Nf3 {[%clk 0:00:10.3]} 34. Bxf6+ {[%clk 0:00:19.4]} 34... Rxf6
{[%clk 0:00:10.5]} 35. hxg5 {[%clk 0:00:19.6]} 35... Rf5 {[%clk 0:00:10]} 36.
Rd1 {[%clk 0:00:18.8]} 36... Rd8 {[%clk 0:00:08.1]} 37. g6 {[%clk 0:00:17]}
37... Ne5 {[%clk 0:00:07.6]} 38. Be6 {[%clk 0:00:12.6]} 38... Rf3 {[%clk
0:00:06.4]} 39. Rxf3 {[%clk 0:00:12.1]} 39... Bxf3 {[%clk 0:00:06.6]} 40. Rd4
{[%clk 0:00:12.4]} 40... Bc6 {[%clk 0:00:06.2]} 41. Bd5 {[%clk 0:00:12.3]} 41...
Bd7 {[%clk 0:00:06.1]} 42. Ne4 {[%clk 0:00:12.4]} 42... Bf5 {[%clk 0:00:05.4]}
43. Nc3 {[%clk 0:00:11.3]} 43... Bxg6 {[%clk 0:00:04.8]} 44. Nxb5 {[%clk
0:00:10.9]} 44... Rc8 {[%clk 0:00:05.3]} 45. c4 {[%clk 0:00:09.8]} 45... Nd3+
{[%clk 0:00:04.2]} 46. Kd2 {[%clk 0:00:09.9]} 46... Nxb2 {[%clk 0:00:04.3]} 47.
Nxd6 {[%clk 0:00:10.3]} 47... Rb8 {[%clk 0:00:03.5]} 48. c5 {[%clk 0:00:10.1]}
48... Kf6 {[%clk 0:00:02.5]} 49. c6 {[%clk 0:00:10.4]} 49... Ke5 {[%clk
0:00:03.1]} 50. c7 {[%clk 0:00:10.3]} 50... Rh8 {[%clk 0:00:03.2]} 51. Rb4
{[%clk 0:00:07]} 51... Kxd6 {[%clk 0:00:03.3]} 52. Rxb2 {[%clk 0:00:06.2]} 52...
Rc8 {[%clk 0:00:01.9]} 53. Bf3 {[%clk 0:00:05.4]} 53... Kxc7 {[%clk 0:00:02.2]}
54. Rc2+ {[%clk 0:00:05.5]} 54... Kd8 {[%clk 0:00:02.5]} 55. Rxc8+ {[%clk
0:00:05.9]} 55... Kxc8 {[%clk 0:00:03.4]} 56. Kc3 {[%clk 0:00:06.5]} 56... Be8
{[%clk 0:00:02.8]} 57. Kb4 {[%clk 0:00:07.1]} 57... Kc7 {[%clk 0:00:03.4]} 58.
Be2 {[%clk 0:00:07.7]} 58... Kb6 {[%clk 0:00:03.9]} 59. Bd1 {[%clk 0:00:07.6]}
59... Bd7 {[%clk 0:00:04.3]} 60. Bxa4 {[%clk 0:00:07.9]} 60... Bxa4 {[%clk
0:00:04.7]} 61. Kxa4 {[%clk 0:00:08.6]} 61... Ka6 {[%clk 0:00:05.4]} 62. Kb4
{[%clk 0:00:09.3]} 62... Kb6 {[%clk 0:00:06.1]} 63. a4 {[%clk 0:00:10]} 63...
Ka6 {[%clk 0:00:06.8]} 64. a5 {[%clk 0:00:10.7]} 64... Ka7 {[%clk 0:00:07.5]}
65. Kb5 {[%clk 0:00:11.3]} 65... Kb7 {[%clk 0:00:08.2]} 66. a6+ {[%clk 0:00:12]}
66... Ka7 {[%clk 0:00:08.9]} 67. Ka5 {[%clk 0:00:12.8]} 67... Ka8 {[%clk
0:00:09.6]} 68. Kb6 {[%clk 0:00:13.5]} 68... Kb8 {[%clk 0:00:10.3]} 69. a7+
{[%clk 0:00:14.2]} 69... Ka8 {[%clk 0:00:10.5]} 70. Ka6 {[%clk 0:00:14.9]}
1/2-1/2